bitfinex-derivatives/quotes_SOLF0:USTF0_20260227
["timestamp","ask_amount","ask_price","bid_price","bid_amount"]
[1772159736979,10.3899,86.62,86.58,3.41233906]
[1772159737383,3.68438144,86.629,86.577,3.59965281]
[1772159737779,3.68438144,86.629,86.58,3.41233906]
[1772159737986,10.3911,86.61,86.577,3.59965281]
[1772159743593,3.68438144,86.616,86.577,3.59965281]
[1772159743890,3.68438144,86.616,86.58,3.41233906]
[1772159744890,3.76227833,86.628,86.581,3.7702744]
[1772159745894,3.76227833,86.625,86.581,3.7702744]
[1772159747998,3.76227833,86.621,86.581,3.7702744]
[1772159748887,3.76227833,86.62,86.581,3.7702744]
[1772159749492,3.76227833,86.62,86.57,3.41169385]
[1772159749887,3.41169385,86.63,86.57,3.41169385]
[1772159749888,3.76227833,86.618,86.57,3.41169385]
[1772159750083,3.76227833,86.618,86.518,28.03697364]
[1772159750084,3.76227833,86.649,86.6,3.41169385]
[1772159750888,14.14957833,86.642,86.6,3.41169385]
[1772159752694,10.3879,86.636,86.6,3.41169385]
[1772159754196,10.3889,86.628,86.6,3.41169385]
[1772159754601,3.76227833,86.641,86.6,3.41169385]
[1772159754798,3.76227833,86.641,86.6,7.18196825]
[1772159756099,10.3879,86.637,86.6,7.18196825]
[1772159756301,3.76227833,86.657,86.601,3.7702744]
[1772159756496,3.76227833,86.657,86.611,3.7702744]
[1772159756694,10.3861,86.652,86.611,3.7702744]
[1772159756895,3.76227833,86.679,86.621,3.7702744]
[1772159757100,3.76227833,86.702,86.651,3.7702744]
[1772159757897,10.3808,86.696,86.651,3.7702744]
[1772159758196,3.76227833,86.702,86.651,3.7702744]
[1772159758197,3.76227833,86.702,86.66,3.41169385]
[1772159758397,3.76227833,86.702,86.66,7.18196825]
[1772159758597,3.76227833,86.702,86.661,3.7702744]
[1772159770405,3.76227833,86.702,86.655,10.3856]
[1772159770806,3.76227833,86.702,86.65,7.15972559]
[1772159771116,3.65386856,86.689,86.64,3.41169385]
[1772159771304,3.65386856,86.689,86.635,3.74803174]
[1772159771500,3.65386856,86.686,86.635,3.74803174]
[1772159772506,3.65386856,86.681,86.635,3.74803174]
[1772159773612,3.65386856,86.679,86.635,3.74803174]
[1772159774912,3.65386856,86.676,86.635,3.74803174]
[1772159775716,3.65386856,86.669,86.61,3.41169385]
[1772159776013,3.65386856,86.669,86.611,3.74803174]
[1772159777016,34.65,86.702,86.611,3.74803174]
[1772159777017,10.3864,86.649,86.611,3.74803174]
[1772159777710,10.3874,86.641,86.6,3.41169385]
[1772159778505,10.3874,86.641,86.6,7.15972559]
[1772159778706,3.65386856,86.648,86.601,3.74803174]
[1772159779905,10.3867,86.647,86.601,3.74803174]
[1772159780110,3.65386856,86.646,86.601,3.74803174]
[1772159781016,10.3873,86.642,86.601,3.74803174]
[1772159782610,3.65386856,86.646,86.601,3.74803174]
[1772159783413,14.04056856,86.646,86.601,3.74803174]
[1772159784418,3.65386856,86.645,86.601,3.74803174]
[1772159787416,3.65386856,86.645,86.548,34.65]
[1772159787417,3.65386856,86.667,86.611,3.74803174]
[1772159787611,3.65386856,86.667,86.62,3.41169385]
[1772159788017,3.65386856,86.665,86.62,3.41169385]
[1772159788917,3.65386856,86.663,86.62,3.41169385]
[1772159789114,3.65386856,86.663,86.612,10.3908]
[1772159790316,3.65386856,86.663,86.612,14.13883174]
[1772159791323,3.65386856,86.663,86.613,3.74803174]
[1772159795326,3.65386856,86.659,86.613,3.74803174]
[1772159795624,3.65386856,86.657,86.613,3.74803174]
[1772159797725,3.65386856,86.654,86.613,3.74803174]
[1772159798617,3.41169385,86.68,86.63,7.05294076]
[1772159798823,3.71919978,86.679,86.631,3.64124691]
[1772159799728,10.384,86.669,86.631,3.64124691]
[1772159800528,10.383,86.678,86.631,3.64124691]
[1772159800729,3.71919978,86.679,86.631,3.64124691]
[1772159801626,3.8782172,86.69,86.641,3.7312202]
[1772159803328,34.65,86.716,86.641,3.7312202]
[1772159803630,12.76254097,86.743,86.671,3.7312202]
[1772159803829,12.76254097,86.743,86.69,3.41169385]
[1772159804029,12.72607829,86.734,86.68,3.41169385]
[1772159804729,8.32101247,86.772,86.695,10.3808]
[1772159804939,12.72607829,86.795,86.73,3.41169385]
[1772159805135,12.72607829,86.781,86.73,3.41169385]
[1772159805337,3.41169385,86.77,86.72,3.41169385]
[1772159805534,12.72607829,86.769,86.72,3.41169385]
[1772159805933,12.72607829,86.769,86.73,3.41169385]
[1772159806831,12.71962108,86.759,86.71,3.41169385]
[1772159807031,12.71962108,86.759,86.633,161.5962]
[1772159807032,12.71962108,86.759,86.7,3.41169385]
[1772159807237,10.3733,86.758,86.7,3.41169385]
[1772159807433,12.71962108,86.749,86.7,3.41169385]
[1772159807937,3.41169385,86.75,86.644,423.76476761]
[1772159807938,12.83289339,86.739,86.68,3.41169385]
[1772159808137,12.83289339,86.739,86.69,3.41169385]
[1772159809437,12.83289339,86.739,86.669,10.384]
[1772159809743,12.83289339,86.729,86.67,3.41169385]
[1772159811341,12.83289339,86.729,86.68,3.40330911]
[1772159811740,12.83289339,86.729,86.671,10.3837]
[1772159811946,20.0,86.79,86.644,423.76476761]
[1772159811947,12.88996471,86.719,86.66,3.40330911]
[1772159813248,3.40330911,86.71,86.65,3.40330911]
[1772159813448,12.88996471,86.709,86.65,3.40330911]
[1772159813844,12.88996471,86.709,86.651,10.3861]
[1772159815852,12.88591573,86.699,86.651,10.3861]
[1772159816340,16.28922484,86.69,86.644,423.76476761]
[1772159816544,12.88591573,86.689,86.641,10.3873]
[1772159816745,12.88591573,86.689,86.63,3.40330911]
[1772159817453,12.88591573,86.689,86.64,3.40330911]
[1772159819148,12.88591573,86.689,86.631,10.3885]
[1772159820855,12.91331255,86.687,86.63,3.40330911]
[1772159821155,12.91331255,86.679,86.62,13.79300911]
[1772159821357,12.91331255,86.679,86.63,3.40330911]
[1772159822356,12.91331255,86.679,86.62,3.40330911]
[1772159823753,12.91331255,86.679,86.63,3.40330911]
[1772159824850,12.91331255,86.679,86.63,13.79190911]
[1772159829358,12.91331255,86.679,86.63,10.3886]
[1772159832558,12.91331255,86.679,86.639,10.3875]
[1772159835460,5.85332456,86.659,86.621,14.0234425]
[1772159835663,5.85332456,86.649,86.6,3.40330911]
[1772159836862,5.85332456,86.649,86.608,10.3912]
[1772159840161,5.8607001,86.663,86.62,3.40330911]
[1772159840769,5.8607001,86.679,86.64,3.40330911]
[1772159841165,5.8607001,86.694,86.648,10.3865]
[1772159841358,5.8607001,86.694,86.65,3.40330911]
[1772159842163,5.8607001,86.694,86.64,3.40330911]
[1772159842869,5.8607001,86.694,86.651,10.3861]
[1772159848464,5.8607001,86.694,86.64,3.40330911]
[1772159849172,5.8607001,86.694,86.576,35.49083252]
[1772159849173,3.40330911,86.68,86.63,3.40330911]
[1772159849474,5.98295278,86.679,86.62,3.40330911]
[1772159850973,5.98295278,86.679,86.631,10.3884]
[1772159851274,5.98295278,86.679,86.63,3.40330911]
[1772159852971,5.98295278,86.679,86.639,10.3875]
[1772159861385,5.95465822,86.699,86.644,10.387]
[1772159861584,5.95465822,86.699,86.632,20.99766556]
[1772159861585,5.95465822,86.699,86.65,3.40330911]
[1772159862876,5.95465822,86.699,86.652,10.3859]
[1772159866379,5.96127791,86.689,86.642,10.3872]
[1772159868888,5.96127791,86.689,86.631,10.3885]
[1772159869189,3.40330911,86.68,86.62,3.40330911]
[1772159869387,5.96981715,86.679,86.62,3.40330911]
[1772159869583,5.96981715,86.679,86.63,3.40330911]
[1772159871290,5.96981715,86.679,86.63,3.40702826]
[1772159871492,5.96981715,86.679,86.63,13.79562826]
[1772159873495,5.96981715,86.679,86.63,3.40702826]
[1772159875892,5.96981715,86.679,86.629,10.3887]
[1772159876095,5.96981715,86.679,86.63,3.40702826]
[1772159876495,5.96981715,86.679,86.631,10.3885]
[1772159881702,5.96981715,86.679,86.634,10.3881]
[1772159884305,5.96981715,86.679,86.634,31.38576556]
[1772159885007,5.96981715,86.679,86.634,10.3881]
[1772159888010,5.96981715,86.679,86.621,20.99766556]
[1772159888011,5.96981715,86.679,86.625,10.3892]
[1772159888611,5.87850919,86.669,86.625,10.3892]
[1772159891610,5.88061217,86.683,86.632,10.3883]
[1772159895110,5.88061217,86.683,86.627,20.99766556]
[1772159895318,5.87999928,86.669,86.623,10.3895]
[1772159905226,5.87999928,86.669,86.629,10.3887]
[1772159911332,5.87999928,86.669,86.621,10.3897]
[1772159912128,5.83762903,86.659,86.621,10.3897]
[1772159916729,5.83762903,86.659,86.612,10.3907]
[1772159917232,5.83762903,86.659,86.6,3.40702826]
[1772159918030,5.83762903,86.659,86.61,3.40702826]
[1772159919033,5.83762903,86.659,86.619,10.3899]
[1772159920435,5.83762903,86.659,86.624,10.3893]
[1772159931534,5.73743244,86.672,86.624,10.3893]
[1772159931733,5.73743244,86.672,86.591,431.72434706]
[1772159931734,5.73743244,86.672,86.629,10.3887]
[1772159931939,5.73743244,86.672,86.63,3.40702826]
[1772159932944,5.78735049,86.669,86.62,10.3898]
[1772159933350,5.78735049,86.669,86.614,20.99766556]
[1772159933645,5.78735049,86.659,86.61,3.408691]
[1772159933846,5.78735049,86.659,86.611,10.3909]
[1772159934343,5.79173468,86.649,86.611,10.3909]
[1772159934547,5.79173468,86.639,86.591,431.72434706]
[1772159934746,5.79173468,86.629,86.57,3.408691]
[1772159937049,5.79173468,86.629,86.574,10.3954]
[1772159940148,5.82988478,86.628,86.57,3.408691]
[1772159941044,5.82988478,86.619,86.57,3.408691]
[1772159941253,5.82988478,86.609,86.56,3.408691]
[1772159941846,5.82637297,86.608,86.56,3.408691]
[1772159942648,3.408691,86.6,86.543,10.399]
[1772159942948,5.82637297,86.599,86.543,10.399]
[1772159943749,5.83019151,86.579,86.53,3.408691]
[1772159945063,5.83019151,86.579,86.55,3.408691]
[1772159945452,5.83019151,86.599,86.55,3.408691]
[1772159946563,5.82333162,86.619,86.57,3.408691]
[1772159947762,5.82333162,86.619,86.571,10.3957]
[1772159947960,5.82333162,86.619,86.58,3.408691]
[1772159948964,5.82333162,86.619,86.58,13.803291]
[1772159950066,5.82333162,86.619,86.58,10.3946]
[1772159952654,5.82333162,86.619,86.57,3.408691]
[1772159953267,5.82333162,86.619,86.568,10.396]
[1772159954160,5.82894836,86.608,86.533,20.99766556]
[1772159954462,5.82894836,86.579,86.52,3.408691]
[1772159954861,5.82894836,86.569,86.52,3.408691]
[1772159955460,5.82894836,86.569,86.51,3.408691]
[1772159955871,5.82894836,86.569,86.517,10.4021]
[1772159957167,5.82894836,86.569,86.52,3.408691]
[1772159957475,5.90061069,86.583,86.53,3.408691]
[1772159958371,5.90061069,86.583,86.54,3.408691]
[1772159958771,5.90061069,86.583,86.542,10.3992]
[1772159959666,3.408691,86.6,86.542,10.3992]
[1772159959869,3.408691,86.61,86.56,3.408691]
[1772159960064,5.89654928,86.612,86.57,3.408691]
[1772159960769,5.89654928,86.612,86.571,10.3956]
[1772159962874,5.88344437,86.629,86.58,3.408691]
[1772159963172,5.88344437,86.629,86.59,3.408691]
[1772159964372,5.88344437,86.629,86.592,10.3932]
[1772159966570,3.408691,86.66,86.601,10.3921]
[1772159966774,5.86903289,86.659,86.601,10.3921]
[1772159969867,5.86903289,86.659,86.61,3.408691]
[1772159970673,5.86903289,86.659,86.611,10.3909]
[1772159984180,5.92430137,86.649,86.611,10.3909]
[1772159985483,5.92430137,86.649,86.603,10.3919]
[1772159985678,5.92430137,86.639,86.58,3.408691]
[1772159986883,5.92430137,86.639,86.593,10.393]
[1772159991093,5.92395815,86.629,86.593,10.393]
[1772159999397,5.95766606,86.639,86.601,10.3921]
[1772160001294,5.95766606,86.639,86.609,10.3911]
[1772160005602,5.95766606,86.639,86.6,10.3922]
[1772160031623,6.07517843,86.619,86.576,20.99766556]
[1772160031814,6.07517843,86.609,86.57,20.99766556]
[1772160032014,6.07517843,86.609,86.566,20.99766556]
[1772160032318,6.07517843,86.609,86.562,20.99766556]
[1772160032921,6.07517843,86.609,86.564,10.3965]
[1772160033721,6.0577792,86.599,86.564,10.3965]
[1772160034422,6.0577792,86.599,86.554,31.39536556]
[1772160035216,6.0577792,86.599,86.557,20.99766556]
[1772160035418,6.0577792,86.599,86.556,20.99766556]
[1772160036318,6.06533963,86.589,86.551,20.99766556]
[1772160036525,6.06533963,86.589,86.532,20.99766556]
[1772160037422,6.06533963,86.589,86.53,3.41056725]
[1772160037821,6.09540624,86.579,86.535,10.4]
[1772160039125,6.09543059,86.569,86.526,10.4011]
[1772160040125,6.09543059,86.569,86.517,10.4022]
[1772160045323,6.09543059,86.569,86.525,10.4012]
[1772160049332,6.106895,86.579,86.54,3.41056725]
[1772160051033,6.106895,86.579,86.543,10.399]
[1772160051724,6.10517133,86.599,86.543,10.399]
[1772160052936,6.10517133,86.599,86.551,10.398]
[1772160053437,6.10517133,86.599,86.55,3.41056725]
[1772160053637,6.10517133,86.599,86.562,10.3968]
[1772160054237,6.05586981,86.61,86.562,10.3968]
[1772160058637,9.46842345,86.61,86.562,10.3968]
[1772160058839,6.04894451,86.609,86.562,10.3968]
[1772160076949,9.49079168,86.6,86.553,10.3979]
[1772160077150,6.07823804,86.6,86.553,10.3979]
[1772160077551,6.07823804,86.6,86.56,10.397]
[1772160080056,6.07823804,86.6,86.56,13.80955364]
[1772160081460,6.07823804,86.6,86.56,10.397]
[1772160081758,6.07823804,86.6,86.56,13.80955364]
[1772160084254,6.07823804,86.6,86.56,10.397]
[1772160089260,6.07823804,86.6,86.56,13.80955364]
[1772160092357,6.07823804,86.6,86.56,10.397]
[1772160105177,6.07823804,86.6,86.562,20.99766556]
[1772160107978,6.07823804,86.6,86.563,10.3966]
[1772160109680,6.07823804,86.6,86.563,31.39426556]
[1772160112576,6.07823804,86.6,86.563,10.3966]
[1772160112979,6.07823804,86.6,86.563,31.39426556]
[1772160113781,6.07823804,86.6,86.563,10.3966]
[1772160116284,6.07823804,86.6,86.555,10.3976]
[1772160124580,6.07823804,86.6,86.55,3.41276692]
[1772160124581,6.10372037,86.579,86.533,20.99766556]
[1772160124781,6.10372037,86.569,86.51,20.99766556]
[1772160125092,6.10372037,86.569,86.51,3.41276692]
[1772160125790,6.0966111,86.559,86.51,3.41276692]
[1772160125990,6.0966111,86.559,86.5,3.41276692]
[1772160126187,6.0966111,86.549,86.5,3.41276692]
[1772160126892,6.0966111,86.549,86.501,10.4041]
[1772160130998,6.08602125,86.548,86.483,10.4063]
[1772160131290,6.08602125,86.548,86.474,20.99766556]
[1772160131291,6.08602125,86.548,86.49,3.41276692]
[1772160131495,6.08602125,86.548,86.5,3.41276692]
[1772160132696,6.08602125,86.539,86.49,3.41276692]
[1772160132895,6.08602125,86.539,86.491,10.4053]
[1772160135996,20.0,86.56,86.48,3.41276692]
[1772160135997,6.08061661,86.529,86.482,10.4064]
[1772160136191,6.08061661,86.529,86.48,3.41276692]
[1772160136600,6.08061661,86.529,86.49,3.41276692]
[1772160137098,6.06521815,86.539,86.5,3.41276692]
[1772160138000,6.06521815,86.539,86.501,10.4041]
[1772160141606,6.09504164,86.556,86.501,10.4041]
[1772160142008,6.09504164,86.556,86.51,3.41276692]
[1772160144109,6.09504164,86.556,86.501,10.4041]
[1772160144310,6.09504164,86.556,86.509,10.4032]
[1772160145011,6.09504164,86.556,86.517,10.4022]
[1772160145214,6.09504164,86.556,86.467,20.8164]
[1772160145215,6.09504164,86.556,86.52,3.41276692]
[1772160145407,6.09368454,86.579,86.53,3.41276692]
[1772160145603,6.09368454,86.579,86.54,10.3994]
[1772160150514,6.09368454,86.579,86.53,3.41276692]
[1772160150715,20.0,86.59,86.54,3.41276692]
[1772160150915,6.07506136,86.591,86.55,3.41276692]
[1772160151717,6.07444794,86.609,86.56,3.41276692]
[1772160152610,6.07444794,86.609,86.519,20.99766556]
[1772160152611,6.07444794,86.609,86.57,3.41276692]
[1772160152811,3.41276692,86.59,86.521,20.99766556]
[1772160153016,6.07102195,86.589,86.54,3.41276692]
[1772160153216,6.07102195,86.589,86.53,3.41276692]
[1772160154713,6.07102195,86.581,86.517,10.4021]
[1772160154914,6.07102195,86.581,86.53,3.41276692]
[1772160157614,6.07102195,86.581,86.531,10.4005]
[1772160160721,6.07102195,86.581,86.539,10.3995]
[1772160169222,6.07102195,86.581,86.53,3.41276692]
[1772160169223,6.07102195,86.581,86.53,10.4006]
[1772160169527,6.07102195,86.581,86.49,27.94631188]
[1772160169528,6.04633571,86.559,86.5,3.41276692]
[1772160170528,6.04633571,86.559,86.51,10.403]
[1772160170728,6.04633571,86.549,86.51,10.403]
[1772160172428,6.04633571,86.549,86.5,3.41276692]
[1772160172429,6.04633571,86.549,86.502,10.404]
[1772160173130,6.04633571,86.549,86.509,10.4031]
[1772160179128,6.04633571,86.549,86.5,10.4043]
[1772160180236,6.07987367,86.539,86.5,10.4043]
[1772160185438,6.07987367,86.539,86.491,10.4053]
[1772160186543,6.14510359,86.519,86.461,20.99766556]
[1772160186941,6.1302116,86.509,86.472,10.4075]
[1772160187135,6.1302116,86.509,86.46,3.41713334]
[1772160187536,6.1302116,86.509,86.45,3.41713334]
[1772160188038,6.1302116,86.499,86.44,20.99766556]
[1772160188238,6.1302116,86.489,86.44,3.41713334]
[1772160189042,6.1302116,86.489,86.441,10.4113]
[1772160190338,3.41713334,86.48,86.441,10.4113]
[1772160190540,6.1435922,86.479,86.431,10.4125]
[1772160193442,6.1435922,86.479,86.44,10.4115]
[1772160193639,3.41713334,86.48,86.44,10.4115]
[1772160194044,6.10261075,86.479,86.44,10.4115]
[1772160195535,6.09560629,86.491,86.448,10.4104]
[1772160195743,6.09560629,86.491,86.44,3.41713334]
[1772160196843,6.08675999,86.509,86.45,3.41713334]
[1772160197033,6.08675999,86.509,86.399,36.67249133]
[1772160197034,6.08675999,86.509,86.422,21.20792928]
[1772160197239,3.41713334,86.47,86.41,3.41713334]
[1772160198636,6.08675999,86.469,86.416,10.4143]
[1772160198942,6.08675999,86.469,86.41,3.41713334]
[1772160199446,6.08675999,86.469,86.42,3.41713334]
[1772160200046,6.08675999,86.469,86.425,10.4133]
[1772160201342,6.08675999,86.469,86.391,21.20792928]
[1772160201544,6.14108983,86.459,86.416,10.4143]
[1772160205650,19.30634739,86.532,86.424,10.4133]
[1772160205651,6.22357564,86.473,86.424,10.4133]
[1772160205849,6.22357564,86.473,86.42,3.41713334]
[1772160207052,6.22357564,86.473,86.432,10.4124]
[1772160210253,6.21356089,86.489,86.44,3.41713334]
[1772160210756,6.21356089,86.489,86.45,3.41713334]
[1772160210956,6.21356089,86.489,86.44,3.41713334]
[1772160211145,6.21356089,86.489,86.45,3.41713334]
[1772160211954,6.21356089,86.489,86.451,10.4101]
[1772160212356,6.21013804,86.503,86.46,3.41713334]
[1772160212557,6.21013804,86.503,86.466,10.4082]
[1772160214861,6.17334716,86.499,86.457,10.4094]
[1772160218962,6.17334716,86.499,86.465,10.4084]
[1772160220565,3.41713334,86.52,86.475,10.4072]
[1772160221267,10.71805242,86.623,86.483,1.654754]
[1772160221466,3.41713334,86.57,86.511,1.654754]
[1772160221867,3.41713334,86.57,86.528,10.4009]
[1772160222462,3.76649445,86.569,86.528,10.4009]
[1772160222661,3.76649445,86.569,86.537,10.3997]
[1772160222859,9.445e-05,86.569,86.537,10.3997]
[1772160223467,3.41713334,86.59,86.541,3.5433395]
[1772160223668,3.41713334,86.6,86.541,3.5433395]
[1772160223964,3.41713334,86.6,86.551,3.5433395]
[1772160224370,3.41713334,86.6,86.556,10.3975]
[1772160225769,7.18362779,86.6,86.556,10.3975]
[1772160225970,3.76649445,86.599,86.556,10.3975]
[1772160226370,3.76649445,86.599,86.546,10.3986]
[1772160226574,3.76649445,86.589,86.546,10.3986]
[1772160233782,3.76649445,86.589,86.541,3.5433395]
[1772160234280,3.76649445,86.589,86.551,3.5433395]
[1772160237275,3.76649445,86.601,86.551,3.5433395]
[1772160238682,7.18027864,86.6,86.551,3.5433395]
[1772160238875,7.18027864,86.6,86.555,3.5433395]
[1772160239185,3.76649445,86.599,86.555,3.5433395]
[1772160240079,3.76649445,86.599,86.556,10.3975]
[1772160240277,3.76649445,86.599,86.556,13.9408395]
[1772160240482,3.76649445,86.599,86.557,3.5433395]
[1772160244979,3.76649445,86.599,86.55,3.41378419]
[1772160244980,3.76649445,86.599,86.561,3.5433395]
[1772160245581,7.18027864,86.61,86.561,3.5433395]
[1772160245986,3.76649445,86.609,86.563,3.5433395]
[1772160246684,3.76649445,86.609,86.566,13.9396395]
[1772160246886,3.76649445,86.609,86.567,3.5433395]
[1772160248985,3.76649445,86.609,86.568,10.396]
[1772160249176,3.76649445,86.609,86.512,34.66]
[1772160249177,23.0,86.62,86.57,3.41378419]
[1772160249380,3.76649445,86.621,86.581,3.5433395]
[1772160250991,3.76649445,86.621,86.585,3.80528241]
[1772160253790,3.76649445,86.621,86.586,10.3939]
[1772160254387,3.76649445,86.621,86.587,3.80528241]
[1772160254585,3.64806532,86.639,86.59,3.80528241]
[1772160254786,3.64806532,86.639,86.591,3.80528241]
[1772160255286,3.64806532,86.639,86.593,10.393]
[1772160259895,3.64806532,86.639,86.593,14.19828241]
[1772160264898,3.64806532,86.639,86.594,3.80528241]
[1772160265396,3.64806532,86.639,86.595,10.3928]
[1772160266098,3.64806532,86.639,86.595,14.19808241]
[1772160269799,3.64806532,86.639,86.596,3.80528241]
[1772160274916,3.64806532,86.637,86.596,3.80528241]
[1772160275303,3.41378419,86.63,86.596,3.80528241]
[1772160277310,3.64806532,86.637,86.596,3.80528241]
[1772160278908,3.65210506,86.646,86.598,3.77102238]
[1772160279207,3.65210506,86.646,86.601,3.77102238]
[1772160279903,3.65210506,86.646,86.605,3.64423687]
[1772160282014,3.65210506,86.646,86.607,3.64423687]
[1772160284217,3.77551116,86.652,86.609,3.64423687]
[1772160284408,3.41378419,86.66,86.611,3.64423687]
[1772160285718,3.77551116,86.659,86.611,3.64423687]
[1772160285913,3.77551116,86.659,86.612,3.64423687]
[1772160286916,3.77551116,86.659,86.614,3.64423687]
[1772160287715,3.77551116,86.659,86.616,3.64423687]
[1772160290317,3.77551116,86.659,86.618,3.64423687]
[1772160302828,3.77551116,86.648,86.618,3.64423687]
[1772160303232,3.77551116,86.658,86.618,3.64423687]
[1772160315547,3.40898137,86.65,86.618,3.64423687]
[1772160315851,3.40898137,86.65,86.59,3.40898137]
[1772160315852,3.57157123,86.649,86.609,3.81437536]
[1772160316248,3.57157123,86.629,86.585,3.81437536]
[1772160316445,3.57157123,86.619,86.585,3.81437536]
[1772160319855,3.40898137,86.61,86.568,3.81437536]
[1772160322054,3.57157123,86.619,86.571,3.81437536]
[1772160323558,3.57157123,86.609,86.571,3.81437536]
[1772160324061,3.57157123,86.599,86.56,3.81437536]
[1772160324754,3.57157123,86.589,86.552,10.3979]
[1772160324960,3.57157123,86.589,86.55,3.81437536]
[1772160325353,10.3916,86.606,86.55,3.81437536]
[1772160325562,3.57157123,86.599,86.55,3.81437536]
[1772160325959,3.40898137,86.6,86.556,10.3975]
[1772160326159,3.40898137,86.61,86.557,3.81437536]
[1772160326463,3.57157123,86.619,86.561,3.81437536]
[1772160326659,3.57157123,86.619,86.569,14.21027536]
[1772160326963,3.57157123,86.619,86.57,3.81437536]
[1772160327163,3.57157123,86.609,86.57,3.81437536]
[1772160329668,3.40898137,86.62,86.572,3.81437536]
[1772160330264,3.40898137,86.62,86.57,3.40898137]
[1772160330265,3.40898137,86.62,86.581,3.81437536]
[1772160333666,3.57157123,86.621,86.581,3.81437536]
[1772160335261,3.57157123,86.621,86.583,3.81437536]
[1772160336369,3.40898137,86.62,86.583,3.81437536]
[1772160337264,3.57157123,86.621,86.583,3.81437536]
[1772160341868,3.40898137,86.62,86.583,3.81437536]
[1772160342068,3.64059022,86.619,86.583,3.81437536]
[1772160342281,3.64059022,86.609,86.563,3.78873501]
[1772160344973,3.64059022,86.606,86.563,3.78873501]
[1772160345273,34.66,86.653,86.539,3.78873501]
[1772160345274,3.64059022,86.579,86.539,3.78873501]
[1772160349576,3.40898137,86.58,86.541,3.78873501]
[1772160349881,3.64059022,86.589,86.541,3.78873501]
[1772160350981,3.64059022,86.589,86.543,3.78873501]
[1772160352370,3.64059022,86.587,86.543,3.78873501]
[1772160352576,3.64059022,86.579,86.543,3.78873501]
[1772160352782,3.64059022,86.569,86.53,3.78873501]
[1772160354376,3.64059022,86.569,86.524,10.4013]
[1772160354580,3.64059022,86.569,86.519,3.78873501]
[1772160358074,3.64059022,86.569,86.51,3.40898137]
[1772160358075,3.64059022,86.569,86.522,3.78873501]
[1772160360681,3.64059022,86.559,86.511,3.78873501]
[1772160360879,3.64059022,86.549,86.511,3.78873501]
[1772160361084,3.64059022,86.549,86.491,3.78873501]
[1772160361785,3.64059022,86.549,86.503,3.78873501]
[1772160362289,3.64059022,86.549,86.453,251.98910816]
[1772160362290,3.64059022,86.563,86.511,3.78873501]
[1772160363385,3.64059022,86.563,86.52,3.78873501]
[1772160364889,3.64059022,86.563,86.522,3.78873501]
[1772160365688,3.64059022,86.563,86.524,3.78873501]
[1772160366688,3.41657997,86.56,86.524,3.78873501]
[1772160367089,3.64059022,86.563,86.524,3.78873501]
[1772160372207,3.72985093,86.559,86.524,3.78873501]
[1772160374609,10.3974,86.558,86.524,3.78873501]
[1772160374907,3.72985093,86.557,86.524,3.78873501]
[1772160375108,3.72985093,86.569,86.524,3.78873501]
[1772160377009,10.3954,86.574,86.524,3.78873501]
[1772160380611,3.72985093,86.579,86.524,3.78873501]
[1772160380911,7.1464309,86.59,86.541,3.63496952]
[1772160381111,3.72985093,86.589,86.541,3.63496952]
[1772160384411,3.72985093,86.579,86.541,3.63496952]
[1772160384612,3.72985093,86.579,86.521,3.63496952]
[1772160386014,3.72985093,86.579,86.525,3.63496952]
[1772160386715,3.72985093,86.579,86.53,3.63496952]
[1772160393916,3.72985093,86.579,86.529,10.4007]
[1772160393917,3.72985093,86.569,86.529,10.4007]
[1772160394722,3.72985093,86.569,86.529,14.03566952]
[1772160395320,3.72985093,86.569,86.469,161.9014]
[1772160395321,3.72985093,86.559,86.516,3.63496952]
[1772160400525,3.72985093,86.559,86.518,3.81065625]
[1772160400729,3.86225473,86.569,86.518,3.81065625]
[1772160400929,3.86225473,86.579,86.521,3.81065625]
[1772160402031,3.86225473,86.579,86.52,3.41657997]
[1772160402032,3.86225473,86.579,86.537,3.81065625]
[1772160405029,3.41657997,86.57,86.537,3.81065625]
[1772160405828,7.2788347,86.56,86.514,3.81065625]
[1772160406030,3.86225473,86.559,86.514,3.81065625]
[1772160407035,3.86225473,86.559,86.52,3.81065625]
[1772160407828,3.86225473,86.559,86.501,3.81065625]
[1772160407829,3.41657997,86.55,86.501,3.81065625]
[1772160408032,3.86225473,86.549,86.501,3.81065625]
[1772160408937,3.86225473,86.549,86.514,10.4026]
[1772160409636,3.86225473,86.563,86.517,3.81065625]
[1772160410940,3.86225473,86.563,86.522,3.81065625]
[1772160414241,3.86225473,86.563,86.525,3.81065625]
[1772160414440,3.41657997,86.57,86.525,3.81065625]
[1772160414639,3.86225473,86.573,86.525,3.81065625]
[1772160415238,3.86225473,86.573,86.536,3.81065625]
[1772160415440,3.86225473,86.584,86.536,3.81065625]
[1772160416944,3.86225473,86.584,86.541,14.20985625]
[1772160418147,3.86225473,86.584,86.542,3.81065625]
[1772160421047,3.86225473,86.582,86.542,3.81065625]